fUST/lending_fUST_20260407
["ID","MTS","AMOUNT","RATE_DAILY","PERIOD"]
[419968755,1775572247036,-500.0,0.00026499,2]
[419968756,1775572247046,-500.0,0.00026499,2]
[419968757,1775572247056,-500.0,0.00026499,2]
[419968758,1775572247065,-500.0,0.00026499,2]
[419968759,1775572247075,-500.0,0.00026499,2]
[419968760,1775572247085,-500.0,0.00026499,2]
[419968761,1775572247094,-500.0,0.00026499,2]
[419968762,1775572247104,-535.50844527,0.00026499,2]
[419968763,1775572247113,-452.73444742,0.00026499,2]
[419968764,1775572247123,-500.0,0.00026499,2]
[419968765,1775572247134,-582.99301272,0.00026499,2]
[419968766,1775572247143,-500.0,0.00026499,2]
[419968767,1775572247153,-500.0,0.00026499,2]
[419968768,1775572247162,-500.0,0.00026499,2]
[419968769,1775572247172,-500.0,0.00026499,2]
[419968770,1775572247182,-500.0,0.00026499,2]
[419968771,1775572247192,-500.0,0.00026499,2]
[419968772,1775572247202,-500.0,0.00026499,2]
[419968773,1775572247212,-500.0,0.00026499,2]
[419968774,1775572247221,-500.0,0.00026499,2]
[419968775,1775572247231,-553.0,0.00026499,10]
[419968776,1775572247240,-62915.85311922,0.000265,5]
[419968777,1775572247256,-9499.5057477,0.000265,5]
[419968778,1775572247267,-7830.84980073,0.000265,5]
[419968780,1775572249831,-410.14775845,0.000265,5]
[419968782,1775572329360,1000.0,0.00013699,2]
[419968845,1775573431821,-1324.24725913,0.00010673,2]
[419968846,1775573431832,-3390.97167807,0.00010673,2]
[419968847,1775573431845,-284.7810628,0.00010673,2]
[419968848,1775573431855,-1470.63,0.00011,2]
[419968849,1775573431864,-191.590741,0.0001236,2]
[419968850,1775573431874,-167.648,0.00013699,2]
[419968851,1775573431883,-1000.0,0.00013699,2]
[419968852,1775573431892,-566.70391149,0.00016692,2]
[419968853,1775573431904,-324.64042675,0.00016692,2]
[419968855,1775573438136,-108.65566176,0.00016692,2]
[419968856,1775573438146,-1625.2343532,0.00018489,2]
[419968857,1775573438156,-191.590741,0.0001854,2]
[419968858,1775573438167,-3886.1380108,0.00019419,2]
[419968859,1775573438177,-230.66125388,0.00019999,2]
[419969253,1775573443076,-269.33874612,0.00019999,2]
[419969255,1775573443086,-82.13242664,0.00019999,2]
[419969257,1775573443100,-144.03517839,0.00019999,2]
[419969259,1775573443111,-175.88811252,0.00019999,2]
[419969261,1775573443121,-57106.2702859,0.0002,7]
[419969273,1775573443236,-644.0,0.0002,7]
[419969581,1775573446189,-2389.7297141,0.0002,7]
[419969584,1775573446200,-305.87,0.0002,2]
[419969585,1775573446209,-556.0,0.00023138,10]
[419969587,1775573446219,-270.83333333,0.00023164,2]
[419969589,1775573446229,-1405.0,0.00023187,2]
[419969591,1775573446238,-644.0,0.00023187,2]
[419969593,1775573446248,-270.83333333,0.00024,7]
[419969595,1775573446258,-191.590741,0.0002472,2]
[419969597,1775573446269,-975.56014811,0.00025646,2]
[419969599,1775573446279,-821.43253086,0.00025646,2]
[419969607,1775573446347,-3080.80806159,0.00025646,2]
[419969609,1775573446357,-276.330926,0.00025832,30]
[419969611,1775573446366,-668.7853343,0.00025832,30]
[419969613,1775573446376,-1187.31750442,0.00026,8]
[419970614,1775574099954,-4928.76136606,0.00013426,2]
[419970667,1775574632010,-275.752,0.00013462,2]
[419970668,1775574632021,-2220.077,0.00013562,2]
[419970753,1775574638354,-2779.923,0.00013562,2]
[419970755,1775574638364,-1000.0,0.00013699,2]
[419970757,1775574638374,-345.255,0.00016,7]
[419970759,1775574638383,-160.74,0.0002,2]
[419970761,1775574638392,-318.2,0.00020256,2]
[419970763,1775574638402,-17562.31136778,0.00022,2]
[419970765,1775574638413,-734.368,0.00022,2]
[419970767,1775574638425,-3271.53840414,0.00022,2]
[419970769,1775574638435,-184.0,0.00022487,2]
[419970771,1775574638445,-1977.96219825,0.00022614,2]
[419970773,1775574638455,-300.0,0.00022832,2]
[419970775,1775574638465,-1431.2794395,0.00022833,2]
[419970777,1775574638475,-556.0,0.00022897,10]
[419970779,1775574638485,-237.3956649,0.00023112,2]
[419970781,1775574638494,-1405.0,0.00023187,2]
[419970783,1775574638504,-644.0,0.00023187,2]
[419970785,1775574638513,-245.199603,0.00023338,2]
[419970787,1775574638523,-601.40952795,0.00024183,2]
[419970789,1775574638533,-2405.63811179,0.00024183,2]
[419970791,1775574638542,-582.8192525,0.00024183,2]
[419970793,1775574638552,-3388.76875651,0.00024451,2]
[419970795,1775574638562,-5407.27306578,0.00025107,2]
[419970797,1775574638572,-2328.94573299,0.00025107,2]
[419970799,1775574638581,-270.83333333,0.00025421,2]
[419970801,1775574638592,-184.0,0.00025487,2]
[419970803,1775574638602,-199.99044668,0.00025615,2]
[419970806,1775574638612,-307.58700002,0.00025615,2]
[419970808,1775574638621,-1957.85600001,0.00025615,2]
[419970810,1775574638631,-2230.315306,0.00025615,2]
[419970811,1775574638640,-557.5788265,0.00025615,2]
[419970813,1775574638650,-500.0,0.00025831,30]
[419970815,1775574638659,-418.85399005,0.00025831,30]
[419971062,1775574641533,-463.0,0.00025831,10]
[419971064,1775574641543,-81.14600995,0.00025831,30]
[419971066,1775574641553,-500.0,0.00025831,30]
[419971068,1775574641563,-704.0983521,0.00025831,30]
[419971070,1775574641572,-276.3309261,0.00025831,30]
[419971072,1775574641582,-334.3926671,0.00025831,30]
[419971074,1775574641592,-200.0,0.0002588,2]
[419971076,1775574641602,-200.0,0.00025914,2]
[419971078,1775574641612,-135.10183547,0.00025949,2]
[419971225,1775574643638,-64.89816453,0.00025949,2]
[419971226,1775574643649,-432.0,0.00025949,10]
[419971227,1775574643659,-200.0,0.00025983,2]
[419971228,1775574643669,-7680.68249558,0.00026,8]
[419971229,1775574643678,-1043.38204906,0.00026,2]
[419971230,1775574643688,-160.0,0.00026,2]
[419971231,1775574643698,-260.65391487,0.00026,2]
[419971232,1775574643708,-200.0,0.00026017,2]
[419971233,1775574643719,-200.0,0.00026017,2]
[419971234,1775574643729,-200.0,0.00026052,2]
[419971235,1775574643739,-200.0,0.00026052,2]
[419971236,1775574643749,-200.0,0.00026086,2]
[419971237,1775574643759,-200.0,0.00026086,2]
[419971238,1775574643768,-200.0,0.00026121,2]
[419971239,1775574643778,-200.0,0.00026121,2]
[419971240,1775574643787,-289.62241578,0.00026154,5]
[419971241,1775574643796,-200.0,0.00026155,2]
[419971242,1775574643806,-200.0,0.00026189,2]
[419971243,1775574643815,-12713.64933749,0.00026374,5]
[419971244,1775574643825,-251.18344288,0.00026399,2]
[419971246,1775574643835,-500.0,0.00026399,2]
[419971247,1775574643844,-500.0,0.00026399,2]
[419971248,1775574643854,-350.0,0.00026399,2]
[419971249,1775574643863,-500.0,0.00026399,2]
[419971250,1775574643872,-500.0,0.00026399,2]
[419971251,1775574643882,-500.0,0.00026399,2]
[419971252,1775574643891,-500.0,0.00026399,2]
[419971253,1775574643901,-600.0,0.00026399,2]
[419971254,1775574643910,-500.0,0.00026399,2]
[419971255,1775574643920,-500.0,0.00026399,2]
[419971256,1775574643930,-37933.92817981,0.000264,2]
[419971297,1775574646378,-5000.0,0.0002569,2]
[419971298,1775574646388,-435.0,0.00026399,10]
[419971299,1775574646398,-7019.60366944,0.000264,2]
[419971300,1775574646432,-7521.20569452,0.000264,2]
[419971541,1775575832180,-441.70512035,0.00012897,2]
[419971553,1775575832287,-681.47697157,0.00012897,2]
[419972148,1775575843440,-3876.81790808,0.00012897,2]
[419972149,1775575843452,-1000.0,0.00013699,2]
[419972150,1775575843463,-215.6,0.0002,2]
[419972151,1775575843473,-1195.0,0.00023181,10]
[419972152,1775575843484,-184.0,0.00023784,2]
[419972153,1775575843495,-643.66531303,0.00023915,2]
[419972154,1775575843506,-115.8941786,0.00023915,2]
[419972417,1775575846506,-598.0,0.00023915,10]
[419972420,1775575846516,-2456.19241228,0.00023915,2]
[419972422,1775575846526,-397.33740618,0.00023915,2]
[419972424,1775575846535,-1587.76027511,0.00023915,2]
[419972426,1775575846545,-803.0735768,0.00024114,30]
[419972428,1775575846554,-245.022,0.00025284,9]
[419972430,1775575846563,-1146.82540937,0.00025426,2]
[419972432,1775575846573,-596.67716591,0.00025523,2]
[419972434,1775575846585,-10001.57071996,0.00025523,2]
[419972747,1775575908003,-4613.0,0.00013562,2]
[419972804,1775577002342,210.07,9e-05,2]
[419972805,1775577003479,210.07,9e-05,2]
[419972855,1775577032456,-341.954,0.00010224,2]
[419972894,1775577038982,-45.046,0.00010224,2]
[419972895,1775577038992,-5000.0,0.00010327,2]
[419972896,1775577039002,-191.590741,0.00011079,2]
[419972897,1775577039013,-151.0,0.00011265,2]
[419972898,1775577039023,-1000.0,0.00013699,2]
[419972899,1775577039032,-844.86,0.0002,2]
[419972901,1775577039043,-228.19,0.0002,2]
[419972903,1775577039053,-173.394795,0.00022527,2]
[419972904,1775577039063,-153.0,0.00022971,3]
[419972905,1775577039073,-153.0,0.00022971,3]
[419972906,1775577039083,-153.0,0.00022971,3]
[419972907,1775577039093,-153.0,0.00022971,3]
[419972908,1775577039103,-153.0,0.00022971,3]
[419972909,1775577039114,-153.0,0.00022971,3]
[419972910,1775577039124,-153.0,0.00022971,3]
[419972911,1775577039134,-153.0,0.00022971,3]
[419972912,1775577039144,-276.0,0.00022971,3]
[419972913,1775577039153,-200.2,0.00022971,2]
[419972914,1775577039164,-573.0,0.00023181,10]
[419972915,1775577039174,-348.0,0.00023181,7]
[419972916,1775577039184,-1532.58123669,0.00023467,2]
[419972917,1775577039195,-3110.64301303,0.00023586,2]
[419972918,1775577039205,-777.66075326,0.00023586,2]
[419972919,1775577039215,-706.72639271,0.00023586,2]
[419972920,1775577039225,-12139.66620024,0.00024,2]
[419972921,1775577039235,-1146.82540937,0.00024214,2]
[419972922,1775577039246,-209.0,0.00024267,2]
[419972923,1775577039257,-644.0,0.00024314,2]
[419972924,1775577039267,-2227.614,0.00024314,2]
[419972925,1775577039277,-1406.0,0.00024314,2]
[419972926,1775577039287,-152.315,0.00024314,2]
[419972927,1775577039297,-200.2,0.00024314,2]
[419972928,1775577039307,-500.0,0.00024702,2]
[419972929,1775577039317,-500.0,0.00024702,2]
[419972930,1775577039327,-500.0,0.00024702,2]
[419972931,1775577039337,-500.0,0.00024702,2]
[419972932,1775577039347,-306.85289448,0.00024702,2]
[419972933,1775577039357,-500.0,0.00024702,2]
[419972934,1775577039368,-500.0,0.00024702,2]
[419972935,1775577039378,-500.0,0.00024702,2]
[419972936,1775577039388,-500.0,0.00024702,2]
[419972937,1775577039398,-401.7,0.00024702,2]
[419972939,1775577039408,-250.0,0.00024702,2]
[419972940,1775577039417,-1458.0,0.00024703,2]
[419972942,1775577039427,-1458.0,0.00024703,2]
[419972944,1775577039437,-1458.0,0.00024703,2]
[419972946,1775577039447,-1458.0,0.00024703,2]
[419972949,1775577039458,-1458.0,0.00024703,2]
[419972951,1775577039481,-1458.0,0.00024703,2]
[419972953,1775577039491,-1458.0,0.00024703,2]
[419972955,1775577039502,-1458.0,0.00024703,2]
[419972957,1775577039512,-1458.0,0.00024703,2]
[419972959,1775577039522,-1458.0,0.00024703,2]
[419972962,1775577039533,-1458.0,0.00024703,2]
[419972964,1775577039542,-500.0,0.00024703,2]
[419972966,1775577039552,-1458.0,0.00024703,2]
[419972968,1775577039561,-500.0,0.00024703,2]
[419972970,1775577039571,-1458.0,0.00024703,2]
[419972972,1775577039580,-500.0,0.00024703,2]
[419972974,1775577039589,-1458.0,0.00024703,2]
[419972975,1775577039599,-500.0,0.00024703,2]
[419972978,1775577039609,-500.0,0.00024703,2]
[419972980,1775577039619,-500.0,0.00024703,2]
[419972982,1775577039630,-369.27878672,0.00024703,2]
[419972984,1775577039640,-1458.0,0.00024703,2]
[419972986,1775577039649,-1458.0,0.00024703,2]
[419972987,1775577039661,-1458.0,0.00024703,2]
[419972989,1775577039671,-1458.0,0.00024703,2]
[419972991,1775577039681,-1458.0,0.00024703,2]
[419972994,1775577039692,-1458.0,0.00024703,2]
[419972996,1775577039702,-1458.0,0.00024703,2]
[419972998,1775577039712,-1458.0,0.00024703,2]
[419973000,1775577039722,-1458.0,0.00024703,2]
[419973002,1775577039731,-1458.20493895,0.00024703,2]
[419973004,1775577039740,-151.0,0.00024703,2]
[419973006,1775577039750,-151.0,0.00024703,2]
[419973008,1775577039761,-500.0,0.00024703,2]
[419973010,1775577039771,-175.82841002,0.00024703,2]
[419973012,1775577039781,-500.0,0.00024703,2]
[419973014,1775577039791,-500.0,0.00024703,2]
[419973016,1775577039801,-379.80055184,0.00024703,2]
[419973018,1775577039811,-499.17827221,0.00024703,2]
[419973020,1775577039821,-500.0,0.00024703,2]
[419973022,1775577039831,-500.0,0.00024703,2]
[419973024,1775577039841,-500.0,0.00024703,2]
[419973026,1775577039851,-500.0,0.00024703,2]
[419973028,1775577039862,-500.0,0.00024703,2]
[419973030,1775577039872,-500.0,0.00024703,2]
[419973032,1775577039882,-500.0,0.00024703,2]
[419973034,1775577039893,-500.0,0.00024703,2]
[419973036,1775577039902,-500.0,0.00024703,2]
[419973038,1775577039912,-500.0,0.00024703,2]
[419973039,1775577039922,-500.0,0.00024703,2]
[419973040,1775577039932,-500.0,0.00024703,2]
[419973041,1775577039942,-151.0,0.00024703,2]
[419973042,1775577039952,-151.0,0.00024703,2]
[419973043,1775577039963,-151.5,0.00024704,2]
[419973044,1775577039973,-243.1066917,0.00024704,2]
[419973045,1775577039983,-500.0,0.00024704,2]
[419973046,1775577039993,-500.0,0.00024704,2]
[419973047,1775577040004,-567.60610243,0.00024704,2]
[419973048,1775577040014,-151.5,0.00024704,2]
[419973049,1775577040025,-500.0,0.00024704,2]
[419973050,1775577040036,-196.42028166,0.00024704,2]
[419973051,1775577040047,-500.0,0.00024704,2]
[419973052,1775577040058,-500.0,0.00024704,2]
[419973053,1775577040069,-500.0,0.00024704,2]
[419973054,1775577040079,-500.0,0.00024704,2]
[419973055,1775577040089,-603.47794651,0.00024704,2]
[419973056,1775577040099,-500.0,0.00024704,2]
[419973057,1775577040109,-1440.0,0.00024704,2]
[419973058,1775577040119,-1440.0,0.00024704,2]
[419973059,1775577040130,-1440.0,0.00024704,2]
[419973060,1775577040141,-500.0,0.00024704,2]
[419973061,1775577040151,-1440.0,0.00024704,2]
[419973062,1775577040161,-500.0,0.00024704,2]
[419973063,1775577040172,-1440.0,0.00024704,2]
[419973064,1775577040183,-461.76615685,0.00024704,2]
[419973065,1775577040192,-1440.0,0.00024704,2]
[419973066,1775577040203,-1440.0,0.00024704,2]
[419973067,1775577040214,-1440.0,0.00024704,2]
[419973068,1775577040223,-1440.0,0.00024704,2]
[419973069,1775577040233,-1440.0,0.00024704,2]
[419973070,1775577040244,-1440.0,0.00024704,2]
[419973071,1775577040254,-1440.0,0.00024704,2]
[419973072,1775577040264,-1440.0,0.00024704,2]
[419973073,1775577040274,-1440.0,0.00024704,2]
[419973074,1775577040284,-1440.0,0.00024704,2]
[419973075,1775577040295,-501.0,0.00024704,2]
[419973076,1775577040305,-1440.0,0.00024704,2]
[419973078,1775577040315,-1440.0,0.00024704,2]
[419973080,1775577040325,-501.0,0.00024704,2]
[419973082,1775577040336,-1440.0,0.00024704,2]
[419973084,1775577040346,-501.0,0.00024704,2]
[419973087,1775577040356,-1440.0,0.00024704,2]
[419973090,1775577040367,-1440.0,0.00024704,2]
[419973092,1775577040377,-501.0,0.00024704,2]
[419973094,1775577040386,-1440.0,0.00024704,2]
[419973096,1775577040397,-501.0,0.00024704,2]
[419973099,1775577040407,-1440.0,0.00024704,2]
[419973102,1775577040416,-501.0,0.00024704,2]
[419973104,1775577040426,-1440.0,0.00024704,2]
[419973106,1775577040435,-501.0,0.00024704,2]
[419973108,1775577040445,-501.0,0.00024704,2]
[419973111,1775577040455,-501.0,0.00024704,2]
[419973113,1775577040466,-1445.20889164,0.00024704,2]
[419973115,1775577040476,-501.0,0.00024704,2]
[419973117,1775577040486,-501.0,0.00024704,2]
[419973119,1775577040497,-501.0,0.00024704,2]
[419973121,1775577040506,-501.0,0.00024704,2]
[419973123,1775577040516,-501.0,0.00024704,2]
[419973125,1775577040526,-501.0,0.00024704,2]
[419973127,1775577040537,-501.0,0.00024704,2]
[419973129,1775577040547,-501.0,0.00024704,2]
[419973131,1775577040557,-501.0,0.00024704,2]
[419973133,1775577040567,-501.0,0.00024704,2]
[419973135,1775577040577,-501.0,0.00024704,2]
[419973137,1775577040587,-501.0,0.00024704,2]
[419973139,1775577040598,-501.0,0.00024704,2]
[419973142,1775577040608,-521.4861218,0.00024704,2]
[419973144,1775577040619,-151.5,0.00024704,2]
[419973146,1775577040629,-204.35555907,0.00024704,2]
[419973147,1775577040640,-151.5,0.00024704,2]
[419973150,1775577040651,-151.5,0.00024704,2]
[419973152,1775577040661,-151.5,0.00024704,2]
[419973153,1775577040672,-216.81317609,0.00024704,2]
[419973156,1775577040682,-151.5,0.00024704,2]
[419973158,1775577040692,-188.056538,0.00024704,2]
[419973160,1775577040703,-200.2,0.00024704,2]
[419973162,1775577040713,-200.3036513,0.00024704,2]
[419973164,1775577040722,-151.0,0.00024704,2]
[419973166,1775577040731,-241.272025,0.00024704,2]
[419973168,1775577040741,-153.369738,0.00024704,2]
[419973170,1775577040751,-500.0,0.00024773,2]
[419973172,1775577040762,-394.9299113,0.00024794,2]
[419973174,1775577040772,-936.8067689,0.00024794,2]
[419973176,1775577040781,-472.0,0.00024801,2]
[419973178,1775577040791,-472.0,0.00024801,2]
[419973180,1775577040802,-472.0,0.00024801,2]
[419973182,1775577040812,-472.0,0.00024801,2]
[419973184,1775577040822,-472.0,0.00024801,2]
[419973186,1775577040832,-472.0,0.00024801,2]
[419973188,1775577040842,-472.0,0.00024801,2]
[419973190,1775577040852,-472.0,0.00024801,2]
[419973192,1775577040862,-472.0,0.00024801,2]
[419973194,1775577040872,-472.0,0.00024801,2]
[419973196,1775577040881,-472.0,0.00024801,2]
[419973198,1775577040891,-472.0,0.00024801,2]
[419973200,1775577040900,-472.0,0.00024801,2]
[419973202,1775577040909,-472.0,0.00024801,2]
[419973203,1775577040918,-472.0,0.00024801,2]
[419973205,1775577040927,-472.0,0.00024801,2]
[419973207,1775577040937,-472.0,0.00024801,2]
[419973209,1775577040946,-472.0,0.00024801,2]
[419973211,1775577040956,-472.0,0.00024801,2]
[419973213,1775577040965,-472.0,0.00024801,2]
[419973215,1775577040975,-472.0,0.00024801,2]
[419973217,1775577040985,-472.0,0.00024801,2]
[419973219,1775577040995,-472.0,0.00024801,2]
[419973221,1775577041006,-489.67070678,0.00024801,2]
[419973223,1775577041016,-151.0,0.00024801,2]
[419973225,1775577041026,-151.0,0.00024801,2]
[419973227,1775577041036,-3384.42637904,0.00024878,2]
[419973230,1775577041046,-255.530001,0.00024936,2]
[419973232,1775577041056,-847.93,0.00024968,3]
[419973234,1775577041066,-423.97,0.00024968,3]
[419973236,1775577041076,-211.98,0.00024968,3]
[419973238,1775577041086,-635.98,0.00024968,3]
[419973240,1775577041096,-200.0,0.00024968,2]
[419973242,1775577041107,-500.0,0.00024978,2]
[419973244,1775577041117,-500.0,0.00024978,2]
[419973246,1775577041128,-500.0,0.00024978,2]
[419973248,1775577041137,-500.0,0.00024978,2]
[419973250,1775577041147,-500.0,0.00024978,2]
[419973252,1775577041157,-500.0,0.00024978,2]
[419973254,1775577041167,-212.98676469,0.00024978,2]
[419973256,1775577041177,-500.0,0.00024978,2]
[419973258,1775577041191,-500.0,0.00024978,2]
[419973260,1775577041202,-500.0,0.00024978,2]
[419973262,1775577041212,-500.0,0.00024978,2]
[419973264,1775577041222,-500.0,0.00024978,2]
[419973266,1775577041232,-569.53170289,0.00024978,2]
[419973268,1775577041242,-500.0,0.00024978,2]
[419973270,1775577041252,-500.0,0.00024978,2]
[419973272,1775577041262,-151.5,0.00024978,2]
[419973274,1775577041272,-151.5,0.00024978,2]
[419973276,1775577041283,-500.0,0.00024978,2]
[419973278,1775577041293,-500.0,0.00024978,2]
[419973280,1775577041303,-197.45079767,0.00024978,2]
[419973282,1775577041313,-157.03263827,0.00024978,2]
[419973284,1775577041323,-500.0,0.00024978,2]
[419973286,1775577041334,-500.0,0.00024978,2]
[419973288,1775577041345,-500.0,0.00024978,2]
[419973290,1775577041356,-500.0,0.00024978,2]
[419973292,1775577041367,-500.0,0.00024978,2]
[419973294,1775577041377,-1743.0,0.00024978,2]
[419973297,1775577041390,-487.03786479,0.00024978,2]
[419973298,1775577041400,-1743.0,0.00024978,2]
[419973300,1775577041410,-1743.0,0.00024978,2]
[419973302,1775577041419,-949.0,0.00024978,2]
[419973305,1775577041429,-1743.0,0.00024978,2]
[419973307,1775577041440,-949.0,0.00024978,2]
[419973309,1775577041450,-949.0,0.00024978,2]
[419973311,1775577041460,-1743.0,0.00024978,2]
[419973313,1775577041470,-949.0,0.00024978,2]
[419973315,1775577041480,-1743.0,0.00024978,2]
[419973317,1775577041491,-949.0,0.00024978,2]
[419973319,1775577041501,-1743.0,0.00024978,2]
[419973321,1775577041510,-949.0,0.00024978,2]
[419973323,1775577041519,-1743.0,0.00024978,2]
[419973325,1775577041529,-949.0,0.00024978,2]
[419973327,1775577041538,-500.0,0.00024978,2]
[419973330,1775577041548,-1743.0,0.00024978,2]
[419973332,1775577041558,-500.0,0.00024978,2]
[419973334,1775577041568,-949.0,0.00024978,2]
[419973336,1775577041578,-1743.0,0.00024978,2]
[419973338,1775577041588,-500.0,0.00024978,2]
[419973340,1775577041599,-1743.0,0.00024978,2]
[419973342,1775577041609,-949.0,0.00024978,2]
[419973344,1775577041621,-500.0,0.00024978,2]
[419973346,1775577041631,-1743.0,0.00024978,2]
[419973348,1775577041641,-949.0,0.00024978,2]
[419973350,1775577041653,-500.0,0.00024978,2]
[419973353,1775577041664,-1743.0,0.00024978,2]
[419973355,1775577041675,-949.0,0.00024978,2]
[419973357,1775577041686,-500.0,0.00024978,2]
[419973358,1775577041697,-949.0,0.00024978,2]
[419973361,1775577041708,-500.0,0.00024978,2]
[419973363,1775577041718,-949.0,0.00024978,2]
[419973365,1775577041728,-1743.0,0.00024978,2]
[419973367,1775577041738,-500.0,0.00024978,2]
[419973369,1775577041748,-949.0,0.00024978,2]
[419973371,1775577041758,-1743.0,0.00024978,2]
[419973373,1775577041769,-594.59481307,0.00024978,2]
[419973375,1775577041779,-949.0,0.00024978,2]
[419973377,1775577041789,-1743.0,0.00024978,2]
[419973379,1775577041799,-949.0,0.00024978,2]
[419973381,1775577041809,-1743.0,0.00024978,2]
[419973383,1775577041819,-949.0,0.00024978,2]
[419973385,1775577041829,-1743.0,0.00024978,2]
[419973387,1775577041839,-949.0,0.00024978,2]
[419973389,1775577041849,-1743.0,0.00024978,2]
[419973391,1775577041859,-949.0,0.00024978,2]
[419973393,1775577041869,-1743.0,0.00024978,2]
[419973395,1775577041880,-949.0,0.00024978,2]
[419973397,1775577041890,-151.7521585,0.00024978,2]
[419973399,1775577041900,-1743.0,0.00024978,2]
[419973401,1775577041910,-949.0,0.00024978,2]
[419973403,1775577041920,-1743.0,0.00024978,2]
[419973405,1775577041930,-949.0,0.00024978,2]
[419973407,1775577041941,-1743.0,0.00024978,2]
[419973409,1775577041950,-949.0,0.00024978,2]
[419973411,1775577041960,-1755.96775379,0.00024978,2]
[419973413,1775577041970,-969.34734289,0.00024978,2]
[419973415,1775577041980,-500.0,0.00025073,2]
[419973417,1775577041990,-252.096573,0.00025073,2]
[419973419,1775577042000,-500.0,0.00025073,2]
[419973421,1775577042010,-517.19822348,0.00025073,2]
[419973423,1775577042020,-151.5,0.00025075,2]
[419973425,1775577042030,-151.5,0.00025075,2]
[419973427,1775577042040,-247.90490962,0.00025075,2]
[419973429,1775577042051,-500.0,0.00025075,2]
[419973431,1775577042061,-241.43960639,0.00025075,2]
[419973433,1775577042071,-500.0,0.00025075,2]
[419973435,1775577042081,-500.0,0.00025075,2]
[419973437,1775577042091,-500.0,0.00025075,2]
[419973439,1775577042101,-500.0,0.00025075,2]
[419973441,1775577042111,-151.5,0.00025075,2]
[419973443,1775577042121,-151.5,0.00025075,2]
[419973445,1775577042131,-500.0,0.00025075,2]
[419973447,1775577042143,-243.22027592,0.00025075,2]
[419973449,1775577042153,-500.0,0.00025075,2]
[419973451,1775577042163,-500.0,0.00025075,2]
[419973453,1775577042172,-500.0,0.00025075,2]
[419973455,1775577042182,-500.0,0.00025075,2]
[419973457,1775577042193,-500.0,0.00025075,2]
[419973459,1775577042203,-500.0,0.00025075,2]
[419973461,1775577042213,-310.78700256,0.00025075,2]
[419973463,1775577042223,-500.0,0.00025075,2]
[419973465,1775577042233,-500.0,0.00025075,2]
[419973467,1775577042243,-500.0,0.00025075,2]
[419973469,1775577042253,-500.0,0.00025075,2]
[419973472,1775577042264,-500.0,0.00025075,2]
[419973473,1775577042274,-500.0,0.00025075,2]
[419973476,1775577042289,-500.0,0.00025075,2]
[419973478,1775577042301,-500.0,0.00025075,2]
[419973480,1775577042312,-151.5,0.00025075,2]
[419973482,1775577042323,-500.0,0.00025075,2]
[419973485,1775577042335,-500.0,0.00025075,2]
[419973487,1775577042345,-192.04061813,0.00025075,2]
[419973489,1775577042355,-500.0,0.00025075,2]
[419973491,1775577042366,-510.08894076,0.00025075,2]
[419973523,1775577042674,-175.09363071,0.00025075,2]
[419973525,1775577042688,-500.0,0.00025075,2]
[419973527,1775577042698,-359.01435642,0.00025075,2]
[419973529,1775577042709,-151.5,0.00025252,2]
[419973531,1775577042721,-295.20338708,0.00025252,2]
[419973533,1775577042731,-151.5,0.00025252,2]
[419973535,1775577042741,-249.05244165,0.00025252,2]